bitfinex-derivatives/quotes_SOLF0:USTF0_20241208
["timestamp","ask_amount","ask_price","bid_price","bid_amount"]
[1733670368584,2.1211,235.57,235.56,19.50761339]
[1733670369174,2.1211,235.57,235.56,11.02601801]
[1733670369383,2.1211,235.57,235.37,70.56716322]
[1733670369384,2.14,235.59,235.38,5.88059693]
[1733670369580,2.1216,235.51,235.47,4.34526209]
[1733670369877,2.1216,235.51,235.5,19.48698329]
[1733670370077,2.1216,235.51,235.5,21.18589308]
[1733670370274,2.1216,235.51,235.5,19.50471226]
[1733670370478,2.1216,235.51,235.5,11.02440478]
[1733670371376,2.1216,235.51,235.5,4.2401543]
[1733670372488,2.1222,235.45,235.41,4.34526209]
[1733670372781,2.1222,235.45,235.42,19.47527124]
[1733670372977,2.14,235.48,235.43,16.71419264]
[1733670373173,2.14,235.48,235.44,18.41331793]
[1733670373478,2.14,235.48,235.45,11.007762]
[1733670373783,51.1674367,235.56,235.46,9.30863671]
[1733670374081,2.14,235.55,235.47,13.12797114]
[1733670374284,2.14,235.55,235.48,9.30518806]
[1733670374582,2.14,235.55,235.49,3.17180131]
[1733670374781,2.14,235.55,235.44,2.7473]
[1733670374982,2.1218,235.49,235.45,16.8554406]
[1733670375178,2.1218,235.49,235.46,10.72730124]
[1733670375384,2.1218,235.49,235.47,9.02839658]
[1733670375584,2.1218,235.49,235.48,3.06406968]
[1733670376280,2.1218,235.49,235.44,4.8695]
[1733670376487,2.1218,235.49,235.45,2.76071202]
[1733670376678,2.1218,235.49,235.46,5.96307808]
[1733670376985,2.1217,235.51,235.47,5.96307808]
[1733670377280,4.241,235.64,235.48,3.06264648]
[1733670377481,2.1213,235.55,235.49,3.06264648]
[1733670377680,2.14,235.57,235.5,3.06264648]
[1733670377877,2.14,235.57,235.51,3.06264648]
[1733670378078,2.14,235.57,235.52,3.06180066]
[1733670378380,2.14,235.57,235.53,3.06169839]
[1733670378580,2.14,235.57,235.46,2.14]
[1733670378781,2.14,235.57,235.47,19.02629113]
[1733670379088,2.14,235.57,235.48,18.96704439]
[1733670379387,2.14,235.57,235.49,10.72050335]
[1733670379585,2.14,235.57,235.5,7.96025375]
[1733670379779,2.14,235.57,235.49,1.06163446]
[1733670379780,2.14,235.57,235.51,3.06163606]
[1733670379980,2.1212,235.56,235.52,3.06163606]
[1733670380289,2.14,235.57,235.53,3.06145107]
[1733670380589,2.14,235.57,235.5,1.06163446]
[1733670380887,2.1213,235.54,235.51,9.02155176]
[1733670381080,2.1213,235.54,235.46,2.14]
[1733670381081,2.14,235.57,235.52,4.12314268]
[1733670381280,2.14,235.57,235.53,3.06150567]
[1733670381486,2.14,235.57,235.47,2.1219]
[1733670381688,2.14,235.57,235.48,16.84332413]
[1733670381990,2.14,235.57,235.49,9.02161573]
[1733670382186,2.14,235.57,235.5,9.02161573]
[1733670382389,2.14,235.57,235.51,4.12318848]
[1733670382588,2.14,235.57,235.52,4.12318848]
[1733670382787,2.14,235.57,235.47,2.1219]
[1733670383091,2.14,235.57,235.48,18.96759677]
[1733670383290,2.14,235.57,235.49,10.72081556]
[1733670383486,2.14,235.57,235.5,11.14547655]
[1733670383689,2.14,235.57,235.51,9.65942669]
[1733670383994,2.14,235.57,235.52,5.82206518]
[1733670384190,51.15505127,235.63,235.53,5.82206518]
[1733670384492,2.121,235.59,235.54,12.84360312]
[1733670384687,2.121,235.59,235.55,7.50219357]
[1733670384894,2.14,235.62,235.56,5.82206518]
[1733670385186,2.1208,235.61,235.57,5.82170206]
[1733670385493,2.14,235.62,235.58,3.06171899]
[1733670385695,2.1209,235.6,235.57,1.06167161]
[1733670385887,2.14,235.62,235.58,4.12307123]
[1733670386189,2.1208,235.6,235.59,1.06142214]
[1733670386384,2.1208,235.6,235.55,1.3504]
[1733670386385,2.14,235.62,235.49,4.2220879]
[1733670386584,2.14,235.62,235.5,16.37471757]
[1733670386892,2.14,235.62,235.51,14.08566676]
[1733670387087,2.14,235.62,235.52,7.96146382]
[1733670387288,2.14,235.62,235.53,9.65989957]
[1733670387488,2.14,235.62,235.54,3.06210147]
[1733670387687,2.14,235.62,235.55,3.06210147]
[1733670387883,2.14,235.62,235.53,1.69843575]
[1733670387884,2.14,235.62,235.56,4.12362381]
[1733670388085,2.14,235.62,235.57,1.06152234]
[1733670388288,2.14,235.62,235.51,2.1216]
[1733670388484,51.15505127,235.63,235.53,2.1213]
[1733670388688,2.14,235.62,235.54,7.96256492]
[1733670388889,2.14,235.62,235.55,9.02371797]
[1733670389094,2.14,235.62,235.56,11.1467987]
[1733670389296,2.14,235.62,235.57,7.96217761]
[1733670389586,2.14,235.62,235.58,4.76098955]
[1733670389792,2.14,235.62,235.59,5.82252991]
[1733670389987,2.14,235.62,235.42,23.52238773]
[1733670390185,2.14,235.62,235.54,0.10615892]
[1733670390384,2.1208,235.61,235.55,8.36746294]
[1733670390587,2.1208,235.61,235.56,5.18490941]
[1733670390785,2.1208,235.61,235.57,7.96173001]
[1733670391089,2.1208,235.61,235.58,7.96181322]
[1733670391394,2.1208,235.61,235.59,4.76036829]
[1733670391595,2.1208,235.61,235.6,4.76036829]
[1733670391801,2.1208,235.61,235.6,5.82172182]
[1733670391998,2.1208,235.61,235.6,4.12355738]
[1733670392497,2.14,235.63,235.6,4.12355738]
[1733670392695,2.14,235.65,235.61,1.06135353]
[1733670392896,2.14,235.66,235.62,1.06135353]
[1733670393096,2.14,235.66,235.63,1.06135353]
[1733670393400,2.14,235.66,235.56,1.2776]
[1733670393401,4.2382,235.8,235.57,1.2779]
[1733670393701,2.14,235.79,235.58,12.50648805]
[1733670393899,2.14,235.79,235.59,11.78163041]
[1733670394097,2.14,235.79,235.6,11.78163041]
[1733670394298,2.14,235.79,235.61,9.65915589]
[1733670394493,2.14,235.78,235.62,4.75997049]
[1733670394695,2.1203,235.66,235.63,5.82120775]
[1733670394895,2.1203,235.66,235.64,1.06123726]
[1733670395098,2.1203,235.66,235.65,1.06123726]
[1733670395904,2.1205,235.64,235.58,1.3616]
[1733670396101,2.1205,235.64,235.59,10.71850927]
[1733670396307,2.1205,235.64,235.6,5.82050768]
[1733670396503,2.1205,235.64,235.61,4.75925511]
[1733670396709,2.1205,235.64,235.61,1.06125257]
[1733670396910,2.14,235.68,235.62,1.06125257]
[1733670397206,2.1205,235.63,235.58,3.4826]
[1733670397413,2.1205,235.63,235.59,12.83994851]
[1733670397608,2.1205,235.63,235.6,5.82010559]
[1733670397813,2.1205,235.63,235.61,5.82010559]
[1733670398004,2.14,235.68,235.62,1.06126205]
[1733670398409,2.14,235.68,235.58,1.3616]
[1733670398714,2.1207,235.62,235.59,5.8200026]
[1733670399011,2.1207,235.62,235.6,1.0613034]
[1733670399203,2.1207,235.62,235.61,1.0613034]
[1733670400512,2.1208,235.6,235.58,1.3616]
[1733670400706,2.1208,235.6,235.57,1.2779]
[1733670400707,2.1208,235.6,235.59,1.06138773]
[1733670402118,2.1208,235.6,235.57,1.2779]
[1733670403014,2.1209,235.59,235.57,1.2779]
[1733670403514,2.1209,235.59,235.58,1.06138812]
[1733670403910,2.1209,235.59,235.57,1.2779]
[1733670404119,2.1209,235.59,235.58,3.06051472]
[1733670404319,2.1,235.63,235.57,1.2779]
[1733670404819,2.1,235.63,235.52,1.3238]
[1733670405118,2.1,235.63,235.53,16.83887364]
[1733670405315,2.1,235.63,235.52,1.3238]
[1733670405316,2.1,235.63,235.54,7.95778873]
[1733670405516,2.1,235.63,235.55,4.12211816]
[1733670405725,2.1,235.63,235.56,4.12211816]
[1733670405914,2.1,235.63,235.57,3.06068797]
[1733670406118,2.1,235.63,235.52,1.3238]
[1733670406318,2.1,235.63,235.53,9.01939725]
[1733670406519,2.1,235.63,235.54,3.0607525]
[1733670406718,2.1,235.63,235.53,1.06144075]
[1733670406912,2.1,235.63,235.54,3.06110487]
[1733670407119,2.1,235.63,235.52,1.3238]
[1733670407324,2.1,235.63,235.53,4.12271666]
[1733670407621,2.1,235.63,235.52,1.3238]
[1733670407822,2.1,235.63,235.53,3.06136143]
[1733670408024,2.1,235.63,235.52,1.3238]
[1733670408319,2.1215,235.52,235.51,1.3626]
[1733670408522,2.1215,235.52,235.51,3.06144659]
[1733670408715,2.1218,235.49,235.46,1.3406]
[1733670408916,2.1218,235.49,235.47,4.12371453]
[1733670409119,2.1218,235.49,235.48,3.06190795]
[1733670409827,2.122,235.47,235.46,1.3406]
[1733670410122,2.122,235.47,235.46,4.4024415]
[1733670411615,2.1,235.5,235.45,1.3374]
[1733670411616,2.1221,235.46,235.45,1.3374]
[1733670411823,2.1221,235.46,235.45,4.39829251]
[1733670412920,2.1221,235.46,235.45,3.06089251]
[1733670413126,2.1,235.5,235.41,1.3184]
[1733670413127,2.1223,235.44,235.41,1.3184]
[1733670413421,2.1223,235.44,235.42,9.01934388]
[1733670413616,2.1223,235.44,235.43,3.06053275]
[1733670415423,2.1,235.5,235.4,1.3988]
[1733670415727,2.1225,235.41,235.4,1.3988]
[1733670415922,2.1225,235.41,235.4,9.35107567]
[1733670416526,2.1224,235.43,235.4,9.35107567]
[1733670416822,4.2415,235.61,235.41,7.95227567]
[1733670417025,2.1217,235.51,235.42,7.95227567]
[1733670417229,2.1217,235.51,235.45,2.1221]
[1733670417423,2.1217,235.51,235.46,7.95227567]
[1733670417622,2.1217,235.51,235.47,3.05856756]
[1733670417825,2.1217,235.51,235.48,3.05856756]
[1733670418024,2.1217,235.5,235.46,2.122]
[1733670418219,2.1,235.53,235.47,3.05773804]
[1733670418522,2.1,235.53,235.48,4.119492]
[1733670418727,2.1,235.53,235.49,4.1198191]
[1733670419027,2.1,235.53,235.5,3.0580992]
[1733670419228,2.1,235.55,235.44,2.1]
[1733670419526,2.1,235.56,235.5,1.2794]
[1733670419723,2.1,235.58,235.51,4.11985934]
[1733670419928,2.1,235.58,235.5,1.2794]
[1733670420129,2.1,235.58,235.51,5.42815087]
[1733670420325,2.1,235.58,235.51,1.3085]
[1733670420523,2.1213,235.55,235.51,1.3085]
[1733670420831,2.1213,235.55,235.52,4.11984173]
[1733670421128,2.1213,235.55,235.51,1.3085]
[1733670421327,2.1213,235.55,235.52,4.11983519]
[1733670421532,2.1213,235.55,235.51,1.3085]
[1733670421724,2.121,235.58,235.52,6.24157075]
[1733670421921,53.25903166,235.62,235.53,7.95135043]
[1733670422127,53.25903166,235.62,235.54,4.11999896]
[1733670422331,53.25903166,235.62,235.55,4.11999896]
[1733670422528,53.25903166,235.62,235.56,3.05844193]
[1733670422730,53.25903166,235.62,235.57,1.06146752]
[1733670423031,2.121,235.59,235.54,2.1213]
[1733670423221,2.121,235.59,235.55,5.81793538]
[1733670423426,2.121,235.59,235.56,4.11960724]
[1733670423630,2.121,235.59,235.56,1.06145509]
[1733670423826,2.121,235.59,235.57,1.06145509]
[1733670424028,2.121,235.59,235.54,2.1213]
[1733670424231,2.1208,235.6,235.55,5.81795631]
[1733670424431,51.15903166,235.62,235.56,4.11961962]
[1733670424631,51.15903166,235.62,235.57,1.06146043]
[1733670424832,51.15903166,235.62,235.52,1.4025]
[1733670424833,2.1212,235.56,235.52,1.4025]
[1733670425029,2.1212,235.56,235.53,11.1356337]
[1733670425230,2.1212,235.56,235.54,4.1196341]
[1733670425427,2.1212,235.56,235.55,5.81797421]
[1733670425827,2.1212,235.56,235.55,1.06146257]
[1733670426132,2.1214,235.54,235.51,1.3085]
[1733670426338,2.1214,235.54,235.52,5.81901801]
[1733670426636,2.1214,235.54,235.53,1.06161573]
[1733670427729,2.1214,235.54,235.53,4.1202394]
[1733670427935,2.1214,235.54,235.53,1.06161573]
[1733670430234,2.1,235.59,235.5,1.2794]
[1733670430441,2.1,235.59,235.51,1.06170682]
[1733670430640,2.1212,235.56,235.47,2.122]
[1733670430941,2.1,235.59,235.48,5.81933374]
[1733670431234,2.1,235.59,235.49,4.12059865]
[1733670431433,2.1,235.59,235.5,1.06170943]
[1733670431638,2.1,235.59,235.47,2.122]
[1733670431935,2.1,235.59,235.48,4.1205393]
[1733670432141,2.1,235.59,235.49,1.06171666]
[1733670432337,2.1,235.59,235.45,1.382]
[1733670432538,2.1,235.59,235.46,9.01452392]
[1733670432738,2.1,235.59,235.45,3.5041]
[1733670432739,2.1,235.59,235.47,5.81931109]
[1733670432939,2.1217,235.5,235.48,3.05875887]
[1733670433143,2.1217,235.5,235.49,4.12050972]
[1733670433340,2.1217,235.5,235.49,1.06175085]
[1733670434032,2.14,235.52,235.41,0.10622943]
[1733670434235,2.14,235.52,235.42,4.12139454]
[1733670434440,2.14,235.52,235.43,1.06198315]
[1733670434741,2.14,235.52,235.39,1.2864]
[1733670435143,2.14,235.52,235.4,9.0148057]
[1733670435341,2.14,235.52,235.41,4.12079118]
[1733670435542,2.14,235.52,235.42,1.06203211]
[1733670435847,2.14,235.52,235.39,1.2864]
[1733670436045,2.14,235.52,235.4,5.81944067]
[1733670436245,2.14,235.51,235.41,3.05812991]
[1733670436446,2.14,235.5,235.42,3.05812991]
[1733670436741,2.14,235.49,235.43,3.05744484]
[1733670436945,2.14,235.49,235.41,3.1844426]
[1733670436946,2.1221,235.46,235.41,3.1844426]
[1733670437245,2.14,235.49,235.42,3.05744488]
[1733670437435,2.14,235.49,235.43,3.05717633]
[1733670437742,2.1222,235.44,235.42,1.0620426]
[1733670437941,2.1222,235.44,235.43,3.05717542]
[1733670438243,2.1222,235.45,235.43,3.05717542]
[1733670438440,2.1222,235.45,235.39,3.4091]
[1733670438644,2.14,235.49,235.4,9.01064798]
[1733670438947,2.14,235.49,235.41,4.11914907]
[1733670439265,2.14,235.49,235.42,4.11932894]
[1733670439439,2.14,235.49,235.43,1.06196226]
[1733670439744,2.1223,235.44,235.43,1.06196226]
[1733670440246,2.14,235.49,235.39,1.2864]
[1733670440447,2.14,235.49,235.4,4.12023984]
[1733670440641,2.14,235.49,235.41,4.12023984]
[1733670440843,2.1226,235.41,235.39,1.2864]
[1733670441041,2.1226,235.41,235.4,4.12026438]
[1733670442041,2.1226,235.41,235.4,4.12030218]
[1733670442547,2.123,235.36,235.34,1.3112]
[1733670442842,2.123,235.36,235.35,18.95587237]
[1733670443044,2.123,235.36,235.35,4.12084628]
[1733670443438,2.14,235.39,235.27,4.32319303]
[1733670443643,2.14,235.39,235.24,2.6279]
[1733670443644,2.14,235.39,235.28,18.38035962]
[1733670443950,2.14,235.39,235.29,10.71607859]
[1733670444245,2.1234,235.31,235.3,4.12156869]
[1733670444445,2.14,235.31,235.24,2.6279]
[1733670444648,2.14,235.31,235.25,4.12088295]
[1733670444943,2.14,235.31,235.24,2.6279]
[1733670445340,2.1241,235.24,235.17,1.2824]
[1733670445546,2.1241,235.24,235.18,8.73634648]
[1733670445847,2.14,235.31,235.19,2.9514622]
[1733670446046,2.14,235.31,235.2,2.9514622]
[1733670446247,2.14,235.31,235.17,2.6369]
[1733670446248,2.1242,235.23,235.17,2.6369]
[1733670446454,2.1242,235.23,235.18,2.94865731]
[1733670446643,2.1242,235.23,235.19,2.94865731]
[1733670446949,2.14,235.26,235.17,2.6369]
[1733670447142,2.14,235.26,235.18,2.94863055]
[1733670447347,2.14,235.26,235.19,2.94863055]
[1733670447546,2.14,235.26,235.17,2.6369]
[1733670447547,2.1243,235.21,235.17,2.6369]
[1733670447743,2.1243,235.21,235.18,2.94589183]
[1733670447948,2.1243,235.21,235.17,2.6369]
[1733670448150,2.14,235.26,235.18,2.94588718]
[1733670448349,2.1244,235.2,235.15,2.6786]
[1733670448650,2.1244,235.2,235.05,4.2140512]
[1733670448651,2.14,235.2,235.05,4.2140512]
[1733670448851,2.14,235.2,235.06,4.71004412]
[1733670449043,2.14,235.2,235.01,2.768]
[1733670449249,2.1254,235.08,235.02,1.06350981]
[1733670449450,2.1254,235.08,235.03,5.70151771]
[1733670449645,2.1254,235.08,235.06,1.70105176]
[1733670451153,2.1254,235.08,234.95,2.768]
[1733670451154,2.14,235.09,234.95,2.768]
[1733670451343,2.14,235.09,234.96,1.06380185]
[1733670451543,2.1257,235.05,234.97,1.06380185]
[1733670451749,2.14,235.04,234.98,1.06380185]
[1733670451948,2.14,235.04,234.99,1.06380185]
[1733670452151,51.26379506,235.16,235.0,1.06372714]
[1733670452355,2.14,235.15,234.99,1.06380185]
[1733670452556,2.14,235.14,235.01,1.06361173]
[1733670452751,2.1252,235.1,235.02,1.06361173]
[1733670453057,2.14,235.09,235.03,1.06361173]
[1733670453257,2.14,235.09,235.04,1.06361173]
[1733670453457,2.14,235.09,235.0,2.126]
[1733670453458,4.2653,235.09,235.0,2.126]
[1733670453757,4.2653,235.09,235.01,1.06354441]
[1733670453758,2.14,235.09,235.01,1.06354441]
[1733670453956,2.14,235.09,234.95,2.8729011]
[1733670453957,2.1256,235.05,234.95,2.8729011]
[1733670454160,2.1256,235.05,234.96,5.45692315]
[1733670454355,2.1256,235.05,234.97,1.06371051]
[1733670454560,2.1258,235.03,234.98,1.06371051]
[1733670454753,2.1258,235.03,234.99,1.06371051]
[1733670455058,2.1258,235.03,234.95,4.8945]
[1733670455357,2.1259,235.02,234.96,1.0637499]
[1733670455553,2.1259,235.02,234.97,1.0637499]
[1733670455856,51.26379506,235.16,234.98,1.06382808]
[1733670455857,2.24,235.04,234.98,1.06382808]
[1733670456159,2.24,235.04,234.95,2.768]
[1733670456454,2.24,235.04,234.96,1.06382867]
[1733670456655,2.1258,235.02,234.97,1.06382867]
[1733670456850,2.1258,235.02,234.98,1.06382867]
[1733670457047,2.1258,235.02,234.95,2.768]
[1733670457250,2.1258,235.02,234.96,1.06381606]
[1733670457554,2.1259,235.01,234.97,1.06381606]
[1733670457954,2.1259,235.01,234.98,1.06381606]
[1733670458154,2.1259,235.01,234.95,2.768]
[1733670458354,2.1259,235.01,234.96,1.06380692]
[1733670458557,2.1259,235.01,234.97,1.06380692]
[1733670458766,2.1259,235.01,234.98,1.06380692]
[1733670459056,2.24,235.03,234.95,2.768]
[1733670459256,2.24,235.03,234.96,1.06382351]
[1733670459457,2.1259,235.02,234.95,2.768]
[1733670459655,2.1259,235.02,234.96,1.0637876]
[1733670460253,51.26379506,235.16,234.97,1.0637887]
[1733670460452,2.1257,235.04,234.95,2.768]
[1733670460654,2.24,235.03,234.96,1.06376903]
[1733670460850,2.24,235.03,234.97,1.06376903]
[1733670461152,2.24,235.03,234.95,2.768]
[1733670461555,2.1257,235.04,234.97,2.1263]
[1733670461755,4.3657,235.04,234.97,2.1263]
[1733670463763,2.1259,235.02,234.95,4.8944]
[1733670464059,2.24,235.04,234.95,2.768]
[1733670464260,2.1255,235.07,234.99,2.1261]
[1733670464456,2.24,235.08,234.95,5.008]
[1733670464856,4.3653,235.08,235.02,2.1258]
[1733670465252,2.24,235.08,234.95,5.008]
[1733670465459,2.24,235.08,235.02,2.1258]
[1733670465758,51.26379506,235.16,234.95,5.008]
[1733670466061,2.24,235.15,234.95,5.008]
[1733670466463,51.26379506,235.16,234.95,5.008]
[1733670466658,2.24,235.15,234.96,8.17183679]
[1733670466859,2.24,235.16,234.97,7.08166066]
[1733670467066,2.24,235.17,234.98,8.78328193]
[1733670467264,2.24,235.17,234.99,8.78328193]
[1733670467460,2.24,235.17,235.0,6.66533691]
[1733670467659,2.24,235.17,235.11,2.125]
[1733670467864,2.24,235.18,235.11,2.125]
[1733670468068,2.24,235.18,235.05,2.24]
[1733670468266,12.74,235.34,235.13,2.1248]
[1733670468267,2.1243,235.19,235.13,2.1248]
[1733670468657,2.24,235.21,235.1,2.24]
[1733670469365,2.1245,235.17,235.11,2.125]
[1733670469564,2.24,235.21,235.06,6.2113]
[1733670469755,2.24,235.21,235.07,3.7905063]
[1733670469956,2.24,235.21,235.06,6.2113]
[1733670470158,2.24,235.21,235.11,2.125]
[1733670470363,2.24,235.21,235.06,6.2113]
[1733670470557,2.24,235.21,235.07,3.79215242]
[1733670470761,2.24,235.21,235.08,3.79215242]
[1733670470962,2.24,235.21,235.06,6.2113]
[1733670471163,2.1245,235.17,235.07,2.1254]
[1733670471363,44.24,235.36,235.07,2.1254]
[1733670471364,2.24,235.16,235.07,2.1254]
[1733670471765,2.24,235.16,234.98,4.14951299]
[1733670471966,2.24,235.16,234.95,23.52238773]
[1733670471967,2.24,235.16,234.99,8.16428948]
[1733670472170,2.24,235.16,235.0,3.79460053]
[1733670472369,2.24,235.16,235.01,3.79471676]
[1733670472569,2.24,235.16,235.02,2.73105559]
[1733670472765,2.24,235.16,234.95,2.7006]
[1733670472972,2.24,235.16,235.04,2.1256]
[1733670472973,2.1251,235.1,235.04,2.1256]
[1733670473168,2.24,235.1,235.04,2.1256]
[1733670473471,2.1252,235.09,235.03,2.1257]
[1733670473672,2.1252,235.09,234.98,2.24]
[1733670473970,2.1252,235.09,234.99,9.87378784]
[1733670474270,2.1252,235.09,235.0,9.87378784]
[1733670474471,2.1252,235.09,235.01,8.17196805]
[1733670474670,2.1252,235.09,235.03,2.1257]
[1733670475268,2.24,235.1,234.96,27.67190072]
[1733670475469,2.1255,235.06,234.97,9.88243531]
[1733670475771,2.24,235.1,234.98,9.88243531]
[1733670475967,2.1257,235.04,234.99,5.92703665]
[1733670476167,2.24,235.1,235.0,2.73730313]
[1733670476471,12.74,235.21,234.95,2.7006]
[1733670476472,2.24,235.09,234.95,2.7006]
[1733670476667,2.1257,235.03,234.98,2.1262]
[1733670476873,2.1257,235.03,234.99,2.73950461]
[1733670477074,2.1257,235.03,235.0,2.73943871]
[1733670477272,2.1257,235.03,234.98,2.1262]
[1733670477477,2.1257,235.03,234.99,2.74124902]
[1733670477673,2.1257,235.03,235.0,2.74124902]
[1733670477869,2.1257,235.03,234.98,2.1262]
[1733670478066,2.1257,235.03,234.99,2.74118606]
[1733670478369,2.1257,235.03,235.0,2.74118606]
[1733670478569,2.1257,235.03,234.98,2.1262]
[1733670478774,2.1257,235.03,234.99,2.74329523]
[1733670478969,2.1257,235.03,235.0,2.74329523]
[1733670479271,2.24,235.08,235.01,7.13475749]
[1733670479474,2.24,235.09,235.03,2.1257]
[1733670479774,2.1254,235.08,235.04,2.74329523]
[1733670479972,2.24,235.09,235.03,2.1257]
[1733670480174,2.24,235.09,235.04,2.74448529]
[1733670480376,2.24,235.09,235.05,2.74448529]
[1733670480674,2.1253,235.08,235.06,2.74448529]
[1733670480869,2.1253,235.08,235.03,2.1257]
[1733670481075,2.1253,235.08,235.04,8.2037914]
[1733670481272,2.1255,235.07,235.05,2.74619591]
[1733670481579,2.24,235.09,234.99,70.56716321]
[1733670481772,2.24,235.09,235.0,9.2723768]
[1733670481966,2.1256,235.06,235.01,7.1463768]
[1733670482272,2.1256,235.06,235.0,3.18981119]
[1733670482273,2.1256,235.06,235.02,8.21383819]
[1733670482575,4.3656,235.06,235.03,2.74860646]
[1733670482775,4.3656,235.06,235.04,2.74860646]
[1733670482976,4.3656,235.06,235.0,2.126]
[1733670483171,4.3656,235.06,235.01,10.34205778]
[1733670483374,4.3656,235.06,235.02,8.21615778]
[1733670483573,4.3656,235.06,234.98,141.13432643]
[1733670483574,2.24,235.07,235.03,8.22041609]
[1733670483773,2.24,235.07,235.04,2.75090546]
[1733670483975,2.24,235.07,235.05,2.75090546]
[1733670484168,2.1253,235.09,235.06,2.75090546]
[1733670484371,2.24,235.09,235.07,2.75674396]
[1733670484665,2.24,235.09,235.01,70.56716321]
[1733670484870,2.24,235.09,235.08,2.75665193]
[1733670485067,4.2478,235.24,235.02,2.75665193]
[1733670485272,4.2478,235.24,235.04,4.19131531]
[1733670485273,2.24,235.23,235.04,4.19131531]
[1733670485475,2.24,235.23,235.05,12.05594373]
[1733670485678,4.2478,235.24,235.06,11.03575295]
[1733670485873,2.24,235.23,235.07,11.03714455]
[1733670486068,2.24,235.23,235.08,8.23077502]
[1733670486268,2.24,235.23,235.09,8.23077502]
[1733670486580,2.24,235.23,235.05,6.91331531]
[1733670486581,2.125,235.11,235.1,8.23077502]
[1733670486772,2.125,235.11,235.1,2.75665193]
[1733670486968,2.24,235.12,235.05,2.722]
[1733670487176,2.24,235.12,235.06,8.25097088]
[1733670487483,2.24,235.12,235.07,8.25097088]
[1733670487673,2.1252,235.09,235.08,8.25097088]
[1733670488177,2.1252,235.09,235.08,2.76434598]
[1733670488478,2.1252,235.09,235.08,8.26466075]
[1733670488878,2.1252,235.09,235.08,3.83688115]
[1733670489278,2.1252,235.09,235.08,8.27953469]
[1733670490978,2.1252,235.09,235.08,9.98144917]
[1733670491180,2.125,235.11,235.08,11.0934653]
[1733670491483,2.24,235.13,235.09,11.0934653]
[1733670491680,2.24,235.14,235.1,9.98144917]
[1733670491880,2.24,235.14,235.11,11.0934653]
[1733670492080,2.24,235.14,235.12,9.98144917]
[1733670492281,2.24,235.14,235.13,9.98144917]
[1733670492585,4.3647,235.14,235.13,8.28854252]
[1733670492781,4.3647,235.14,235.13,2.77316236]
[1733670493183,2.24,235.14,235.05,4.21641092]
[1733670493481,2.24,235.13,235.06,9.41946778]
[1733670493688,2.24,235.13,235.07,7.24096646]
[1733670493885,2.24,235.13,235.03,4.21641092]
[1733670494088,2.24,235.13,235.04,3.90036398]
[1733670494385,2.24,235.13,234.94,2.1265]
[1733670494685,2.24,235.13,234.95,2.17876185]
[1733670494881,12.74,235.17,234.96,2.17876185]
[1733670495084,12.74,235.15,234.97,1.06387981]
[1733670495282,2.1251,235.1,234.98,2.17876467]
[1733670495483,2.24,235.09,234.99,2.17876467]
[1733670495788,2.24,235.09,235.0,2.17876467]
[1733670495989,2.24,235.09,235.01,2.17876467]
[1733670495990,2.1258,235.02,235.01,2.17876467]
[1733670496986,2.1258,235.02,235.01,1.06388263]
[1733670497387,2.1259,235.01,234.95,2.1264]
[1733670497689,2.24,235.04,234.96,2.16346471]
[1733670497885,2.1262,234.98,234.97,3.97243864]
[1733670498080,2.1262,234.98,234.97,3.8657207]
[1733670498485,2.1262,234.98,234.97,2.76611003]
[1733670499992,2.1262,234.98,234.97,1.06385404]
[1733670502393,2.24,235.01,234.93,1.3886]
[1733670502693,2.24,235.01,234.94,1.06400656]
[1733670502894,2.24,235.01,234.93,1.3886]